[Event "Kuwait Championship Stage-I 2024"]
[Site "Qadsiya"]
[Date "2024.01.23"]
[Round "2.8"]
[White "Alabdaljader, Mohammed"]
[Black "Qabazard, Mohamed"]
[Result "1-0"]
[ECO "B43"]
[WhiteElo "1353"]
[BlackElo "1533"]
[Annotator "NA RC COMBH"]
[PlyCount "81"]
[EventDate "2024.01.22"]
[EventType "swiss"]
[EventCountry "KUW"]
[SourceTitle "playchess.com"]
[Source "ChessBase"]
[SourceQuality "1"]
[TimeControl "5400+30"]

1. e4 {[%emt 0:21:40]} c5 {[%emt 0:00:25]} 2. Nf3 {[%emt 0:00:06]} e6 {[%emt 0:00:32]} 3. d4 {[%emt 0:00:25]} cxd4 {[%emt 0:00:09]} 4. Nxd4 {[%emt 1:10:19]} a6 {[%emt 1:31:24]} 5. Nc3 {[%emt 0:00:00]} Qc7 {[%emt 0:00:00]} 6. Bd3 {[%emt 0:00:00]} Nf6 {[%emt 0:00:00]} 7. Bg5 {[%emt 0:00:00]} Bb4 {[%emt 0:00:00]} 8. Nde2 {[%emt 0:00:00]} b5 {[%emt 0:00:00]} 9. a3 {[%emt 0:00:00]} Ba5 {[%emt 0:00:00]} 10. Bh4 {[%emt 0:00:00]} Bb7 {[%emt 0:00:00]} 11. O-O {[%emt 0:00:00]} Bb6 {[%emt 0:00:00]} 12. Kh1 {[%emt 0:00:00]} d6 {[%emt 0:00:00]} 13. Qd2 {[%emt 0:00:00]} Nbd7 {[%emt 0:00:00]} 14. Qg5 {[%emt 0:00:00]} Rg8 {[%emt 0:00:00]} 15. Qd2 {[%emt 0:00:00]} h6 {[%emt 0:00:00]} 16. f3 {[%emt 0:00:00]} g5 {[%emt 0:00:00]} 17. Bf2 {[%emt 0:00:00]} Bxf2 {[%emt 0:00:00]} 18. Rxf2 {[%emt 0:00:00]} h5 {[%emt 0:00:00]} 19. Nd4 {[%emt 0:00:00]} h4 {[%emt 0:00:00]} 20. Re2 {[%emt 0:00:00]} Nh5 {[%emt 0:00:00]} 21. Rd1 {[%emt 0:00:00]} Nf4 {[%emt 0:00:00]} 22. Ree1 {[%emt 0:00:00]} Ne5 {[%emt 0:00:00]} 23. Bxb5+ {[%emt 0:00:00]} axb5 {[%emt 0:00:00]} 24. Ndxb5 {[%emt 0:00:00]} Qd7 {[%emt 0:00:00]} 25. Nxd6+ {[%emt 0:00:00]} Ke7 {[%emt 0:00:00]} 26. Nxb7 {[%emt 0:00:00]} Qxb7 {[%emt 0:00:00]} 27. Qd6+ {[%emt 0:00:00]} Kf6 {[%emt 0:00:00]} 28. Nd5+ {[%emt 0:00:00]} Nxd5 {[%emt 0:00:00]} 29. exd5 {[%emt 0:00:00]} Qb8 {[%emt 0:00:00]} 30. Qc5 {[%emt 0:00:00]} Qxb2 {[%emt 0:00:00]} 31. dxe6 {[%emt 0:00:00]} fxe6 {[%emt 0:00:00]} 32. c3 {[%emt 0:00:00]} Qb8 {[%emt 0:00:00]} 33. Rd6 {[%emt 0:00:00]} Ra5 {[%emt 0:00:00]} 34. Qd4 {[%emt 0:01:38]} Qb5 {[%emt 0:00:00]} 35. f4 {[%emt 0:04:34]} gxf4 {[%emt 0:00:30]} 36. Qxf4+ {[%emt 0:00:11]} Ke7 {[%emt 0:00:19]} 37. Rd4 {[%emt 0:01:34]} Rg4 {[%emt 0:00:50]} 38. Qh6 {[%emt 0:01:00]} Rxd4 {[%emt 0:00:37]} 39. cxd4 {[%emt 0:00:54]} Rxa3 {[%emt 0:10:25]} 40. dxe5 {[%emt 0:00:22]} Qxe5 {[%emt 0:00:21]} 41. Qxh4+ {[%emt 0:00:13]} 1-0

[Event "Kuwait Championship Stage-I 2024"]
[Site "Qadsiya"]
[Date "2024.01.23"]
[Round "2.9"]
[White "Alrashidi, Yousef"]
[Black "Almohammad, Hamad"]
[Result "0-1"]
[ECO "B13"]
[WhiteElo "1512"]
[BlackElo "1296"]
[Annotator "NA RC COMBH"]
[PlyCount "98"]
[EventDate "2024.01.22"]
[EventType "swiss"]
[EventCountry "KUW"]
[SourceTitle "playchess.com"]
[Source "ChessBase"]
[SourceQuality "1"]
[TimeControl "5400+30"]

1. e4 {[%emt 0:00:30]} c6 {[%emt 0:01:34]} 2. d4 {[%emt 0:00:29]} d5 {[%emt 0:00:07]} 3. exd5 {[%emt 0:00:08]} cxd5 {[%emt 0:00:09]} 4. Nf3 {[%emt 0:00:11]} Nf6 {[%emt 0:00:15]} 5. Be2 {[%emt 0:00:22]} Nc6 {[%emt 0:00:33]} 6. h3 {[%emt 0:00:26]} g6 {[%emt 0:00:42]} 7. c3 {[%emt 0:00:48]} Bg7 {[%emt 0:00:26]} 8. O-O {[%emt 0:01:36]} O-O {[%emt 0:00:18]} 9. Re1 {[%emt 0:00:43]} Bf5 {[%emt 0:01:04]} 10. Nbd2 {[%emt 0:02:52]} Qd7 {[%emt 0:05:38]} 11. Nf1 {[%emt 0:08:38]} Rfe8 {[%emt 0:02:07]} 12. Bb5 {[%emt 0:01:29]} a6 {[%emt 0:05:13]} 13. Ne5 {[%emt 0:03:23]} Qc7 {[%emt 0:00:16]} 14. Bxc6 {[%emt 0:03:48]} bxc6 {[%emt 0:00:20]} 15. Qa4 {[%emt 0:02:25]} c5 {[%emt 0:01:26]} 16. dxc5 {[%emt 0:09:54]} Ne4 {[%emt 0:08:24]} 17. Nd3 {[%emt 0:08:19]} Nxc5 {[%emt 0:00:22]} 18. Nxc5 {[%emt 0:01:17]} Qxc5 {[%emt 0:00:03]} 19. Be3 {[%emt 0:01:19]} Qb5 {[%emt 0:02:02]} 20. Qxb5 {[%emt 0:02:06]} axb5 {[%emt 0:00:15]} 21. Bc5 {[%emt 0:00:46]} e5 {[%emt 0:02:18]} 22. Ne3 {[%emt 0:01:52]} Be6 {[%emt 0:01:30]} 23. Nc2 {[%emt 0:11:56]} Rec8 {[%emt 0:06:58]} 24. b4 {[%emt 0:07:53]} Bf5 {[%emt 0:12:32]} 25. Ne3 {[%emt 0:02:54]} Be6 {[%emt 0:00:03]} 26. Nc2 {[%emt 0:05:50]} e4 {[%emt 0:01:55]} 27. Nd4 {[%emt 0:00:14]} Bxd4 {[%emt 0:00:09]} 28. Bxd4 {[%emt 0:00:37]} Ra3 {[%emt 0:00:51]} 29. Rec1 {[%emt 0:02:52]} Rca8 {[%emt 0:00:17]} 30. Rc2 {[%emt 0:00:24]} f5 {[%emt 0:02:29]} 31. Kh2 {[%emt 0:02:32]} f4 {[%emt 0:02:36]} 32. g3 {[%emt 0:01:55]} f3 {[%emt 0:02:42]} 33. g4 {[%emt 0:00:21]} Kf7 {[%emt 0:00:40]} 34. Kg3 {[%emt 0:00:18]} h5 {[%emt 0:02:27]} 35. gxh5 {[%emt 0:06:27]} gxh5 {[%emt 0:00:04]} 36. Kh4 {[%emt 0:00:19]} Rg8 {[%emt 0:02:45]} 37. Rh1 {[%emt 0:01:38]} Bf5 {[%emt 0:05:52]} 38. Rd2 {[%emt 0:02:10]} Ke8 {[%emt 0:03:43]} 39. Kxh5 {[%emt 0:04:07]} Rg2 {[%emt 0:00:57]} 40. Be5 {[%emt 0:00:34]} Ra7 {[%emt 0:02:00]} 41. Bg3 {[%emt 0:00:33]} Rh7+ {[%emt 0:04:53]} 42. Kg5 {[%emt 0:00:12]} Be6 {[%emt 0:01:03]} 43. Kf4 {[%emt 0:01:07]} Ke7 {[%emt 0:01:34]} 44. h4 {[%emt 0:00:23]} Rf7+ {[%emt 0:01:01]} 45. Ke3 {[%emt 0:00:13]} Rg7 {[%emt 0:02:31]} 46. Re1 {[%emt 0:00:53]} Kf6 {[%emt 0:02:17]} 47. Kd4 {[%emt 0:00:26]} R7xg3 {[%emt 0:00:26]} 48. fxg3 {[%emt 0:00:11]} Rxd2+ {[%emt 0:00:28]} 49. Kc5 {[%emt 0:00:03]} f2 {[%emt 0:16:45]} 0-1

[Event "Kuwait Championship Stage-I 2024"]
[Site "Qadsiya"]
[Date "2024.01.23"]
[Round "2.10"]
[White "Eidi, Eisa"]
[Black "Alruwaiyeh, Musa"]
[Result "1-0"]
[ECO "E62"]
[WhiteElo "1306"]
[BlackElo "1505"]
[Annotator "NA RC COMBH"]
[PlyCount "157"]
[EventDate "2024.01.22"]
[EventType "swiss"]
[EventCountry "KUW"]
[SourceTitle "playchess.com"]
[Source "ChessBase"]
[SourceQuality "1"]
[TimeControl "5400+30"]

1. d4 {[%emt 0:00:03]} d6 {[%emt 0:00:27]} 2. Nf3 {[%emt 0:00:10]} Nf6 {[%emt 0:00:37]} 3. c4 {[%emt 0:00:30]} g6 {[%emt 0:00:33]} 4. g3 {[%emt 0:02:08]} Bg7 {[%emt 0:00:43]} 5. Bg2 {[%emt 0:00:14]} O-O {[%emt 0:00:35]} 6. O-O {[%emt 0:00:07]} Nc6 {[%emt 0:05:40]} 7. Nc3 {[%emt 0:00:27]} Bg4 {[%emt 0:02:35]} 8. h3 {[%emt 0:04:36]} Bxf3 {[%emt 0:01:11]} 9. Bxf3 {[%emt 0:01:26]} Nd7 {[%emt 0:01:34]} 10. e3 {[%emt 0:08:34]} e5 {[%emt 0:02:54]} 11. d5 {[%emt 0:00:27]} Ne7 {[%emt 0:00:43]} 12. e4 {[%emt 0:00:33]} f5 {[%emt 0:01:00]} 13. Bg5 {[%emt 0:00:15]} h6 {[%emt 0:01:28]} 14. Bxe7 {[%emt 0:00:21]} Qxe7 {[%emt 0:00:03]} 15. Bg2 {[%emt 0:00:36]} f4 {[%emt 0:00:53]} 16. g4 {[%emt 0:00:36]} Nf6 {[%emt 0:07:34]} 17. f3 {[%emt 0:01:15]} g5 {[%emt 0:00:47]} 18. b4 {[%emt 0:00:32]} h5 {[%emt 0:00:28]} 19. c5 {[%emt 0:01:40]} dxc5 {[%emt 0:01:35]} 20. Qb3 {[%emt 0:01:22]} Kh8 {[%emt 0:06:22]} 21. b5 {[%emt 0:04:07]} h4 {[%emt 0:03:30]} 22. Qc4 {[%emt 0:05:48]} b6 {[%emt 0:01:02]} 23. Rfd1 {[%emt 0:00:55]} Ne8 {[%emt 0:01:04]} 24. a4 {[%emt 0:00:53]} Nd6 {[%emt 0:00:22]} 25. Qe2 {[%emt 0:00:59]} Qd7 {[%emt 0:02:41]} 26. Bf1 {[%emt 0:00:26]} c4 {[%emt 0:06:41]} 27. Qb2 {[%emt 0:02:37]} a6 {[%emt 0:01:45]} 28. Qb4 {[%emt 0:02:57]} Rfb8 {[%emt 0:02:58]} 29. Bxc4 {[%emt 0:01:07]} a5 {[%emt 0:00:02]} 30. Qb3 {[%emt 0:00:30]} Nb7 {[%emt 0:01:13]} 31. Kg2 {[%emt 0:07:23]} Qd6 {[%emt 0:01:02]} 32. Rdc1 {[%emt 0:06:17]} Kh7 {[%emt 0:01:37]} 33. Qc2 {[%emt 0:01:56]} Nc5 {[%emt 0:00:51]} 34. Nd1 {[%emt 0:00:56]} Kh6 {[%emt 0:00:35]} 35. Nf2 {[%emt 0:00:35]} Bf8 {[%emt 0:00:17]} 36. Nd3 {[%emt 0:00:30]} Qf6 {[%emt 0:01:31]} 37. Qc3 {[%emt 0:03:40]} Bd6 {[%emt 0:00:14]} 38. Nxc5 {[%emt 0:04:41]} Bxc5 {[%emt 0:00:03]} 39. Bb3 {[%emt 0:00:52]} Rd8 {[%emt 0:01:22]} 40. Qc4 {[%emt 0:00:51]} Rd7 {[%emt 0:00:26]} 41. Rab1 {[%emt 0:00:30]} Rad8 {[%emt 0:00:33]} 42. Rd1 {[%emt 0:00:23]} Qd6 {[%emt 0:00:10]} 43. Rbc1 {[%emt 0:02:00]} Be3 {[%emt 0:02:08]} 44. Ra1 {[%emt 0:00:53]} Bd4 {[%emt 0:00:47]} 45. Ra2 {[%emt 0:00:36]} Qf8 {[%emt 0:03:19]} 46. Rc1 {[%emt 0:02:01]} Be3 {[%emt 0:04:47]} 47. Rcc2 {[%emt 0:00:20]} Qd6 {[%emt 0:02:40]} 48. Ra1 {[%emt 0:00:33]} Bd4 {[%emt 0:00:22]} 49. Raa2 {[%emt 0:00:03]} Qb4 {[%emt 0:01:33]} 50. Qxb4 {[%emt 0:00:10]} axb4 {[%emt 0:00:13]} 51. Rc6+ {[%emt 0:00:02]} Kg7 {[%emt 0:00:20]} 52. Rac2 {[%emt 0:00:21]} Bc3 {[%emt 0:00:08]} 53. Ra2 {[%emt 0:03:04]} Ra8 {[%emt 0:00:41]} 54. Rc2 {[%emt 0:00:24]} Kf8 {[%emt 0:03:47]} 55. Kf1 {[%emt 0:00:16]} Rc8 {[%emt 0:00:39]} 56. Ra2 {[%emt 0:00:17]} Rd6 {[%emt 0:02:28]} 57. Rc4 {[%emt 0:01:00]} Ke8 {[%emt 0:02:41]} 58. a5 {[%emt 0:01:22]} bxa5 {[%emt 0:00:02]} 59. Rxa5 {[%emt 0:00:35]} Kd8 {[%emt 0:00:03]} 60. Rc6 {[%emt 0:00:52]} Rxc6 {[%emt 0:01:19]} 61. bxc6 {[%emt 0:01:38]} Ke7 {[%emt 0:00:51]} 62. Ke2 {[%emt 0:00:29]} Kd6 {[%emt 0:00:13]} 63. Kd3 {[%emt 0:00:09]} Rb8 {[%emt 0:01:03]} 64. Kc4 {[%emt 0:00:10]} Bd4 {[%emt 0:01:26]} 65. Ba2 {[%emt 0:01:18]} Bb6 {[%emt 0:03:58]} 66. Ra6 {[%emt 0:00:15]} Bc5 {[%emt 0:00:31]} 67. Bb3 {[%emt 0:00:52]} Be3 {[%emt 0:00:48]} 68. Ba2 {[%emt 0:01:57]} Bd2 {[%emt 0:01:33]} 69. Bb3 {[%emt 0:00:03]} Rb5 {[%emt 0:01:04]} 70. Kxb5 {[%emt 0:00:28]} Be3 {[%emt 0:03:14]} 71. Ra8 {[%emt 0:00:12]} Bb6 {[%emt 0:00:03]} 72. Rg8 {[%emt 0:00:10]} Ke7 {[%emt 0:02:07]} 73. Rxg5 {[%emt 0:00:12]} Bf2 {[%emt 0:00:16]} 74. Rf5 {[%emt 0:00:04]} Kd6 {[%emt 0:00:20]} 75. g5 {[%emt 0:00:04]} Bc5 {[%emt 0:01:06]} 76. g6 {[%emt 0:00:09]} Ke7 {[%emt 0:00:04]} 77. g7 {[%emt 0:00:10]} Bb6 {[%emt 0:00:43]} 78. g8=Q {[%emt 0:00:15]} Bc5 {[%emt 0:00:01]} 79. Qf8# {[%emt 0:00:22]} 1-0

[Event "Kuwait Championship Stage-I 2024"]
[Site "Qadsiya"]
[Date "2024.01.23"]
[Round "2.11"]
[White "Aldaihani, Turki"]
[Black "Alghanim, Faisal"]
[Result "1-0"]
[ECO "B13"]
[WhiteElo "1475"]
[BlackElo "1280"]
[Annotator "NA RC COMBH"]
[PlyCount "49"]
[EventDate "2024.01.22"]
[EventType "swiss"]
[EventCountry "KUW"]
[SourceTitle "playchess.com"]
[Source "ChessBase"]
[SourceQuality "1"]
[TimeControl "5400+30"]

1. e4 {[%emt 0:23:48]} c6 {[%emt 0:00:05]} 2. d4 {[%emt 0:01:56]} d5 {[%emt 0:00:06]} 3. exd5 {[%emt 0:00:32]} cxd5 {[%emt 0:00:08]} 4. Bd3 {[%emt 0:00:02]} Nf6 {[%emt 0:00:12]} 5. h3 {[%emt 0:00:20]} Nc6 {[%emt 0:02:20]} 6. Nf3 {[%emt 0:02:05]} e6 {[%emt 0:02:07]} 7. Bg5 {[%emt 0:02:39]} Be7 {[%emt 0:04:43]} 8. c3 {[%emt 0:02:27]} O-O {[%emt 0:03:44]} 9. O-O {[%emt 0:05:28]} Bd7 {[%emt 0:02:28]} 10. Nbd2 {[%emt 0:01:56]} Rc8 {[%emt 0:02:18]} 11. Ne5 {[%emt 0:03:51]} h6 {[%emt 0:08:35]} 12. Bh4 {[%emt 0:03:36]} Qc7 {[%emt 0:07:34]} 13. f4 {[%emt 0:01:01]} Rfe8 {[%emt 0:06:09]} 14. Bxf6 {[%emt 0:12:16]} Bxf6 {[%emt 0:01:01]} 15. Qh5 {[%emt 0:00:30]} g6 {[%emt 0:26:08]} 16. Bxg6 {[%emt 0:01:19]} fxg6 {[%emt 0:02:13]} 17. Qxg6+ {[%emt 0:00:20]} Bg7 {[%emt 0:00:33]} 18. Ng4 {[%emt 0:02:32]} Nd8 {[%emt 0:25:19]} 19. Nxh6+ {[%emt 0:01:23]} Kh8 {[%emt 0:00:54]} 20. Nf3 {[%emt 0:03:09]} Bb5 {[%emt 0:02:38]} 21. Ng5 {[%emt 0:00:18]} Bxh6 {[%emt 0:00:35]} 22. Qxh6+ {[%emt 0:00:02]} Kg8 {[%emt 0:00:37]} 23. Rf3 {[%emt 0:00:23]} Re7 {[%emt 0:00:48]} 24. Rg3 {[%emt 0:00:55]} Nf7 {[%emt 0:00:36]} 25. Nxe6+ {[%emt 0:01:05]} 1-0

[Event "Kuwait Championship Stage-I 2024"]
[Site "Qadsiya"]
[Date "2024.01.23"]
[Round "2.12"]
[White "Alajmi, Fahad KH"]
[Black "Al Subaie, Nasser"]
[Result "0-1"]
[ECO "E24"]
[WhiteElo "1284"]
[BlackElo "1457"]
[Annotator "NA RC COMBH"]
[PlyCount "88"]
[EventDate "2024.01.22"]
[EventType "swiss"]
[EventCountry "KUW"]
[SourceTitle "playchess.com"]
[Source "ChessBase"]
[SourceQuality "1"]
[TimeControl "5400+30"]

1. d4 {[%emt 0:00:11]} Nf6 {[%emt 0:01:10]} 2. c4 {[%emt 0:00:10]} e6 {[%emt 0:00:08]} 3. Nc3 {[%emt 0:00:07]} Bb4 {[%emt 0:00:17]} 4. a3 {[%emt 0:00:10]} Bxc3+ {[%emt 0:00:17]} 5. bxc3 {[%emt 0:00:10]} b6 {[%emt 0:00:12]} 6. f3 {[%emt 0:00:18]} Nh5 {[%emt 0:00:21]} 7. Be3 {[%emt 1:32:54]} f5 {[%emt 0:04:58]} 8. Bf2 {[%emt 0:00:30]} O-O {[%emt 0:04:19]} 9. e3 {[%emt 0:00:00]} Bb7 {[%emt 0:02:20]} 10. Bd3 {[%emt 0:00:00]} Qg5 {[%emt 0:03:21]} 11. Kf1 {[%emt 0:00:00]} d6 {[%emt 0:04:32]} 12. Nh3 {[%emt 0:00:00]} Qh6 {[%emt 0:01:16]} 13. Qc2 {[%emt 0:00:00]} g5 {[%emt 0:05:48]} 14. Ke2 {[%emt 0:00:00]} g4 {[%emt 0:02:38]} 15. Ng1 {[%emt 0:00:00]} Nd7 {[%emt 0:02:05]} 16. Kd2 {[%emt 0:00:00]} Qf6 {[%emt 0:09:23]} 17. Ne2 {[%emt 0:00:00]} gxf3 {[%emt 0:07:24]} 18. gxf3 {[%emt 0:00:00]} Bxf3 {[%emt 0:00:15]} 19. Rhg1+ {[%emt 0:00:00]} Kh8 {[%emt 0:01:13]} 20. Ng3 {[%emt 0:00:00]} Qh4 {[%emt 0:04:31]} 21. Be2 {[%emt 0:00:00]} Qxh2 {[%emt 0:11:31]} 22. Nxh5 {[%emt 0:00:00]} Qxf2 {[%emt 0:01:51]} 23. Ng3 {[%emt 0:00:00]} Rg8 {[%emt 0:08:34]} 24. Rgf1 {[%emt 0:00:00]} Qh2 {[%emt 0:00:18]} 25. Rxf3 {[%emt 0:00:00]} Rxg3 {[%emt 0:00:19]} 26. Rff1 {[%emt 0:00:00]} Rg2 {[%emt 0:00:34]} 27. Rae1 {[%emt 0:00:00]} Nf6 {[%emt 0:00:29]} 28. Kc1 {[%emt 0:00:00]} Ne4 {[%emt 0:01:03]} 29. Rh1 {[%emt 0:00:00]} Qg3 {[%emt 0:00:11]} 30. Kb1 {[%emt 0:00:00]} Qxe3 {[%emt 0:05:18]} 31. Bd3 {[%emt 0:00:00]} Qg3 {[%emt 0:00:54]} 32. Bxe4 {[%emt 0:00:00]} Rxc2 {[%emt 0:01:05]} 33. Bxc2 {[%emt 0:00:00]} Qxc3 {[%emt 0:00:19]} 34. Rxe6 {[%emt 0:00:00]} Rf8 {[%emt 0:07:56]} 35. Rh4 {[%emt 0:00:00]} Rf7 {[%emt 0:02:22]} 36. Rh5 {[%emt 0:04:54]} Qxc4 {[%emt 0:06:22]} 37. Reh6 {[%emt 0:01:15]} Re7 {[%emt 0:00:56]} 38. Rxf5 {[%emt 0:02:11]} Re1+ {[%emt 0:00:37]} 39. Kb2 {[%emt 0:00:07]} Qxd4+ {[%emt 0:00:30]} 40. Kb3 {[%emt 0:00:41]} Re3+ {[%emt 0:00:28]} 41. Ka2 {[%emt 0:00:13]} Rxa3+ {[%emt 0:02:12]} 42. Kxa3 {[%emt 0:00:22]} Qe3+ {[%emt 0:00:07]} 43. Bb3 {[%emt 0:00:27]} Qxh6 {[%emt 0:00:10]} 44. Rf8+ {[%emt 0:00:08]} Qxf8 {[%emt 0:00:09]} 0-1

[Event "Kuwait Championship Stage-I 2024"]
[Site "Qadsiya"]
[Date "2024.01.24"]
[Round "3.1"]
[White "Hussain, Hashem"]
[Black "Al-Hajiri, Bader"]
[Result "1-0"]
[ECO "B01"]
[WhiteElo "1642"]
[BlackElo "1890"]
[Annotator "NA RC"]
[PlyCount "64"]
[EventDate "2024.01.22"]
[EventType "swiss"]
[EventCountry "KUW"]
[SourceTitle "playchess.com"]
[Source "ChessBase"]
[SourceQuality "1"]
[TimeControl "5400+30"]

1. e4 {[%emt 0:00:03]} d5 {[%emt 0:00:24]} 2. exd5 {[%emt 0:00:30]} Qxd5 {[%emt 0:00:08]} 3. Nf3 {[%emt 0:01:14]} e5 {[%emt 0:01:21]} 4. Nc3 {[%emt 0:01:22]} Qa5 {[%emt 0:00:44]} 5. Bc4 {[%emt 0:03:11]} Nc6 {[%emt 0:00:32]} 6. O-O {[%emt 0:02:43]} Bf5 {[%emt 0:01:10]} 7. d4 {[%emt 0:05:25]} O-O-O {[%emt 0:02:13]} 8. d5 {[%emt 0:17:42]} f6 {[%emt 0:04:36]} 9. Nh4 {[%emt 0:05:48]} Qb4 {[%emt 0:05:46]} 10. Nxf5 {[%emt 0:01:17]} Qxc4 {[%emt 0:00:08]} 11. Ne3 {[%emt 0:00:21]} Qh4 {[%emt 0:07:32]} 12. Nf5 {[%emt 0:02:42]} Qc4 {[%emt 0:00:14]} 13. Ne3 {[%emt 0:02:13]} Qf4 {[%emt 0:02:13]} 14. g3 {[%emt 0:13:49]} Qg5 {[%emt 0:01:38]} 15. h4 {[%emt 0:01:08]} Qg6 {[%emt 0:02:19]} 16. h5 {[%emt 0:02:58]} Qe8 {[%emt 0:03:39]} 17. Qg4+ {[%emt 0:00:40]} Kb8 {[%emt 0:00:07]} 18. dxc6 {[%emt 0:00:20]} Qxc6 {[%emt 0:00:15]} 19. Qc4 {[%emt 0:04:35]} Qe8 {[%emt 0:00:18]} 20. Ng2 {[%emt 0:04:12]} Qxh5 {[%emt 0:01:10]} 21. Be3 {[%emt 0:00:21]} a6 {[%emt 0:02:59]} 22. Rad1 {[%emt 0:01:54]} Rc8 {[%emt 0:01:29]} 23. Rd7 {[%emt 0:01:35]} Nh6 {[%emt 0:00:50]} 24. Bxh6 {[%emt 0:06:00]} Qxh6 {[%emt 0:00:28]} 25. Rfd1 {[%emt 0:00:57]} Qh5 {[%emt 0:02:43]} 26. Ne3 {[%emt 0:02:05]} Qe8 {[%emt 0:01:08]} 27. Ne4 {[%emt 0:03:10]} Be7 {[%emt 0:03:28]} 28. Qe6 {[%emt 0:01:12]} Bf8 {[%emt 0:01:06]} 29. Qc4 {[%emt 0:00:50]} Qg6 {[%emt 0:01:09]} 30. Nd5 {[%emt 0:01:54]} b5 {[%emt 0:08:23]} 31. Qc6 {[%emt 0:03:26]} Qxe4 {[%emt 0:02:59]} 32. Rxc7 {[%emt 0:00:34]} Qe2 {[%emt 0:43:21]} 1-0

[Event "Kuwait Championship Stage-I 2024"]
[Site "Qadsiya"]
[Date "2024.01.24"]
[Round "3.2"]
[White "Hashem, Khaled"]
[Black "Aldaihani, Turki"]
[Result "1-0"]
[ECO "A04"]
[WhiteElo "1868"]
[BlackElo "1475"]
[Annotator "NA RC"]
[PlyCount "81"]
[EventDate "2024.01.22"]
[EventType "swiss"]
[EventCountry "KUW"]
[SourceTitle "playchess.com"]
[Source "ChessBase"]
[SourceQuality "1"]
[TimeControl "5400+30"]

1. Nf3 {[%emt 0:00:06]} c5 {[%emt 0:16:36]} 2. g3 {[%emt 0:00:41]} g6 {[%emt 0:09:20]} 3. Bg2 {[%emt 0:00:50]} Bg7 {[%emt 0:00:10]} 4. d3 {[%emt 0:01:00]} Nc6 {[%emt 0:00:49]} 5. O-O {[%emt 0:00:59]} d6 {[%emt 0:00:11]} 6. e4 {[%emt 0:00:19]} h6 {[%emt 0:02:10]} 7. c3 {[%emt 0:00:33]} Bg4 {[%emt 0:00:48]} 8. h3 {[%emt 0:02:00]} Bxf3 {[%emt 0:00:11]} 9. Qxf3 {[%emt 0:00:04]} e5 {[%emt 0:00:50]} 10. Be3 {[%emt 0:04:32]} Nge7 {[%emt 0:00:39]} 11. Qe2 {[%emt 0:02:15]} O-O {[%emt 0:00:24]} 12. Nd2 {[%emt 0:01:11]} a6 {[%emt 0:00:48]} 13. f4 {[%emt 0:00:47]} exf4 {[%emt 0:00:37]} 14. gxf4 {[%emt 0:00:12]} f5 {[%emt 0:00:21]} 15. Nf3 {[%emt 0:04:57]} Rc8 {[%emt 0:06:09]} 16. Rae1 {[%emt 0:11:17]} Qa5 {[%emt 0:07:10]} 17. a3 {[%emt 0:01:19]} Rfe8 {[%emt 0:12:58]} 18. Nd2 {[%emt 0:09:02]} b5 {[%emt 0:01:22]} 19. h4 {[%emt 0:02:12]} b4 {[%emt 0:04:23]} 20. axb4 {[%emt 0:17:01]} cxb4 {[%emt 0:00:18]} 21. Nc4 {[%emt 0:00:52]} Qc7 {[%emt 0:00:28]} 22. Nb6 {[%emt 0:10:00]} Rb8 {[%emt 0:00:09]} 23. Nd5 {[%emt 0:00:19]} Nxd5 {[%emt 0:01:37]} 24. exd5 {[%emt 0:00:01]} Nd8 {[%emt 0:02:47]} 25. c4 {[%emt 0:03:12]} h5 {[%emt 0:03:12]} 26. Qf2 {[%emt 0:03:14]} Qd7 {[%emt 0:02:35]} 27. d4 {[%emt 0:03:25]} Nf7 {[%emt 0:01:36]} 28. c5 {[%emt 0:01:20]} Nh6 {[%emt 0:00:56]} 29. Bf3 {[%emt 0:03:50]} Ng4 {[%emt 0:04:19]} 30. Bxg4 {[%emt 0:00:02]} hxg4 {[%emt 0:00:23]} 31. Qd2 {[%emt 0:00:11]} Rbd8 {[%emt 0:02:00]} 32. Bf2 {[%emt 0:05:01]} Rxe1 {[%emt 0:04:13]} 33. Rxe1 {[%emt 0:00:09]} Qb7 {[%emt 0:02:32]} 34. c6 {[%emt 0:00:47]} Qb5 {[%emt 0:01:15]} 35. Re7 {[%emt 0:06:44]} Qxd5 {[%emt 0:04:14]} 36. c7 {[%emt 0:01:21]} Rc8 {[%emt 0:01:07]} 37. Qxb4 {[%emt 0:00:27]} Bf8 {[%emt 0:03:21]} 38. Qb8 {[%emt 0:01:07]} Qa8 {[%emt 0:00:24]} 39. Qxa8 {[%emt 0:01:02]} Rxa8 {[%emt 0:00:01]} 40. Rd7 {[%emt 0:00:00]} Rc8 {[%emt 0:00:17]} 41. d5 {[%emt 0:00:01]} 1-0

[Event "Kuwait Championship Stage-I 2024"]
[Site "Qadsiya"]
[Date "2024.01.24"]
[Round "3.3"]
[White "Al Subaie, Nasser"]
[Black "Al Ibrahim, Abdulrahman"]
[Result "0-1"]
[ECO "C55"]
[WhiteElo "1457"]
[BlackElo "1854"]
[Annotator "NA RC"]
[PlyCount "62"]
[EventDate "2024.01.22"]
[EventType "swiss"]
[EventCountry "KUW"]
[SourceTitle "playchess.com"]
[Source "ChessBase"]
[SourceQuality "1"]
[TimeControl "5400+30"]

1. e4 {[%emt 0:00:14]} e5 {[%emt 0:00:05]} 2. Nf3 {[%emt 0:00:08]} Nc6 {[%emt 0:00:05]} 3. Bc4 {[%emt 0:00:07]} Nf6 {[%emt 0:00:06]} 4. d3 {[%emt 0:00:10]} Be7 {[%emt 0:00:09]} 5. O-O {[%emt 1:32:21]} O-O {[%emt 0:00:09]} 6. Re1 {[%emt 0:00:30]} d6 {[%emt 1:32:56]} 7. a4 {[%emt 0:00:30]} Na5 {[%emt 0:00:30]} 8. Ba2 {[%emt 0:00:00]} c5 {[%emt 0:00:30]} 9. Nbd2 {[%emt 0:01:00]} a6 {[%emt 0:00:30]} 10. Nf1 {[%emt 0:00:30]} b5 {[%emt 0:00:30]} 11. Bd2 {[%emt 0:00:30]} b4 {[%emt 0:00:00]} 12. Ne3 {[%emt 0:00:30]} Be6 {[%emt 0:01:00]} 13. Bxe6 {[%emt 0:00:00]} fxe6 {[%emt 0:00:00]} 14. c3 {[%emt 0:00:00]} Rb8 {[%emt 0:00:00]} 15. cxb4 {[%emt 0:00:00]} cxb4 {[%emt 0:00:00]} 16. Rc1 {[%emt 0:02:00]} Nh5 {[%emt 0:02:00]} 17. Nc4 {[%emt 0:00:30]} Nc6 {[%emt 0:00:30]} 18. Be3 {[%emt 0:00:30]} Nf4 {[%emt 0:00:30]} 19. d4 {[%emt 0:00:00]} Nxd4 {[%emt 0:00:00]} 20. Nxd4 {[%emt 0:00:00]} exd4 {[%emt 0:00:00]} 21. Bxf4 {[%emt 0:00:00]} Rxf4 {[%emt 0:00:00]} 22. Qxd4 {[%emt 0:00:00]} d5 {[%emt 0:00:00]} 23. Qe5 {[%emt 0:00:00]} dxc4 {[%emt 0:00:00]} 24. Qxf4 {[%emt 0:00:00]} Bg5 {[%emt 0:00:00]} 25. Qe5 {[%emt 0:00:00]} Bxc1 {[%emt 0:00:00]} 26. Qxe6+ {[%emt 0:00:00]} Kh8 {[%emt 0:00:00]} 27. Rxc1 {[%emt 0:00:00]} c3 {[%emt 0:00:00]} 28. bxc3 {[%emt 0:04:09]} bxc3 {[%emt 0:00:00]} 29. Qe5 {[%emt 0:00:13]} c2 {[%emt 0:00:00]} 30. Qa1 {[%emt 0:00:56]} Qd3 {[%emt 0:00:00]} 31. h3 {[%emt 0:00:39]} Rb1 {[%emt 0:00:00]} 0-1